fUST/lending_fUST_20240121
["ID","MTS","AMOUNT","RATE_DAILY","PERIOD"]
[312360913,1705830564534,-153.0,0.0003,2]
[312360914,1705830564556,-153.0,0.0003,2]
[312360915,1705830564578,-204.9186841,0.0003,2]
[312360916,1705830564599,-195.28673642,0.0003,4]
[312360917,1705830564622,-155.0,0.0003,2]
[312360918,1705830564645,-244.10022188,0.0003,4]
[312360919,1705830564667,-9915.36380901,0.0003,4]
[312360920,1705830564689,-464.55162265,0.0003,2]
[312360921,1705830564712,-424.0,0.00030025,2]
[312360922,1705830564734,-6571.58,0.00030026,3]
[312360923,1705830564757,-170.02,0.00030035,2]
[312360924,1705830564779,-170.02,0.00030035,2]
[312360925,1705830564801,-170.02,0.00030035,2]
[312360926,1705830564823,-170.02,0.00030035,2]
[312360927,1705830564844,-170.02,0.00030035,2]
[312360928,1705830564866,-170.02,0.00030035,2]
[312360929,1705830564887,-170.02,0.00030035,2]
[312360930,1705830564909,-170.02,0.00030035,2]
[312360931,1705830564931,-170.02,0.00030035,2]
[312360932,1705830564953,-10629.29804627,0.00030036,2]
[312360967,1705830631859,-154.70605849,0.00027117,4]
[312360969,1705830631869,-156.9264307,0.00027118,2]
[312360971,1705830631878,-414.05492528,0.00028189,2]
[312360973,1705830631890,-672.38387614,0.00028189,2]
[312360975,1705830631899,-161.80545,0.00028767,2]
[312360977,1705830631908,-170.3728834,0.00029568,2]
[312360979,1705830631918,-643.32194007,0.00029598,2]
[312360981,1705830631927,-155.0,0.0003,2]
[312360983,1705830631937,-3169.17,0.00030026,3]
[312360985,1705830631946,-3020.53956761,0.00030026,3]
[312361057,1705830637967,-1927.58043239,0.00030026,3]
[312361058,1705830637976,-4123.44,0.00030026,3]
[312361059,1705830637986,-464.55162265,0.00030034,2]
[312361060,1705830637997,-663.80781284,0.00030034,4]
[312361061,1705830638006,-667.19586272,0.00030034,4]
[312361062,1705830638016,-653.61556835,0.00030035,4]
[312361063,1705830638027,-9915.36380901,0.00030035,4]
[312361064,1705830638036,-189.43956832,0.00030036,3]
[312361065,1705830638045,-208764.33045634,0.00030036,2]
[312361066,1705830638055,-292.10906799,0.00030036,3]
[312361067,1705830638064,-686.69676861,0.00030036,4]
[312361068,1705830638073,-2025.31377809,0.00030132,4]
[312361069,1705830638083,-3709.50558406,0.00030132,3]
[312361070,1705830638093,-155.39815533,0.00030132,4]
[312361071,1705830638102,-313.23857364,0.00030132,4]
[312361072,1705830638112,-578.16940661,0.00030132,4]
[312361073,1705830638121,-1696.365997,0.00030132,4]
[312361074,1705830638130,-329.46843563,0.00030132,4]
[312361075,1705830638139,-1540.60605234,0.00030132,4]
[312361076,1705830638148,-3017.54053882,0.00030132,4]
[312361077,1705830638158,-2154.70535403,0.00030132,2]
[312361078,1705830638167,-163.63328853,0.00030132,4]
[312361079,1705830638176,-156.440844,0.00030132,4]
[312361080,1705830638185,-528.33981378,0.00030132,4]
[312361081,1705830638195,-1245.25042531,0.00030132,4]
[312361082,1705830638204,-644.2750614,0.00030132,4]
[312361083,1705830638213,-4150.11484548,0.00030132,4]
[312361084,1705830638223,-1258.28045263,0.00030132,4]
[312361085,1705830638232,-404.7830707,0.00030132,4]
[312361086,1705830638241,-155.67200944,0.00030132,4]
[312361087,1705830638250,-199.62558619,0.00030132,4]
[312361088,1705830638260,-422.49965695,0.00030132,4]
[312361089,1705830638269,-154.70605849,0.00030132,4]
[312361090,1705830638410,-406.98672392,0.00030132,4]
[312361091,1705830638421,-247.17282345,0.00030132,4]
[312361092,1705830638431,-4808.87497693,0.00030133,4]
[312361093,1705830638441,-18066.70186855,0.00030134,4]
[312361094,1705830638450,-10596.18297079,0.00030134,4]
[312361095,1705830638459,-2552.90444044,0.00030134,4]
[312361096,1705830638469,-2523.43765642,0.00030134,4]
[312361097,1705830638478,-347.2235622,0.00030134,4]
[312361098,1705830638489,-294.70821043,0.00030134,4]
[312361099,1705830638497,-2928.89496517,0.00030134,4]
[312361100,1705830638507,-2705.10797595,0.00030134,5]
[312361101,1705830638516,-813.13246525,0.00030135,4]
[312361102,1705830638525,-1824.95710943,0.00030135,2]
[312361103,1705830638534,-351.38011252,0.00030135,2]
[312361104,1705830638543,-1200.0,0.00030135,4]
[312361105,1705830638553,-639.1172645,0.00030135,2]
[312361106,1705830638562,-496.4743012,0.00030135,2]
[312361107,1705830638571,-500.0,0.00030135,2]
[312361108,1705830638580,-500.0,0.00030135,2]
[312361109,1705830638590,-494.07848065,0.00030135,2]
[312361110,1705830638600,-500.0,0.00030135,2]
[312361111,1705830638608,-500.0,0.00030135,2]
[312361112,1705830638617,-500.0,0.00030135,2]
[312361113,1705830638626,-500.0,0.00030135,2]
[312361114,1705830638636,-500.0,0.00030135,2]
[312361115,1705830638854,-500.0,0.00030135,2]
[312361116,1705830638864,-500.0,0.00030135,2]
[312361117,1705830638873,-500.0,0.00030135,2]
[312361118,1705830638882,-500.0,0.00030135,2]
[312361119,1705830638892,-500.0,0.00030135,2]
[312361120,1705830638902,-500.0,0.00030135,2]
[312361121,1705830638912,-182.05307598,0.00030135,2]
[312361122,1705830638922,-177.77835816,0.00030135,2]
[312361123,1705830638933,-442.11644239,0.00030135,2]
[312361124,1705830638942,-500.0,0.00030135,2]
[312361125,1705830638951,-500.0,0.00030135,2]
[312361126,1705830638960,-500.0,0.00030135,2]
[312361127,1705830638970,-500.0,0.00030135,2]
[312361128,1705830638979,-500.0,0.00030135,2]
[312361129,1705830638989,-500.0,0.00030135,2]
[312361130,1705830639000,-500.0,0.00030135,2]
[312361131,1705830639009,-500.0,0.00030135,2]
[312361132,1705830639020,-500.0,0.00030135,2]
[312361133,1705830639029,-500.0,0.00030135,2]
[312361134,1705830639040,-500.0,0.00030136,2]
[312361135,1705830639049,-500.0,0.00030136,2]
[312361136,1705830639058,-500.0,0.00030136,2]
[312361137,1705830639066,-500.0,0.00030136,2]
[312361138,1705830639075,-500.0,0.00030136,2]
[312361139,1705830639084,-500.0,0.00030136,2]
[312361140,1705830639093,-500.0,0.00030136,2]
[312361141,1705830639102,-500.0,0.00030136,2]
[312361142,1705830639111,-618.33,0.00030136,2]
[312361143,1705830639120,-503.24194096,0.00030136,2]
[312361144,1705830639129,-500.0,0.00030136,2]
[312361145,1705830639138,-1000.0,0.00030136,2]
[312361146,1705830639147,-500.0,0.00030136,2]
[312361147,1705830639156,-653.16,0.00030136,2]
[312361148,1705830639166,-523.97,0.00030136,2]
[312361149,1705830639175,-500.0,0.00030136,2]
[312361150,1705830639185,-504.73932629,0.00030136,2]
[312361151,1705830639194,-500.0,0.00030136,2]
[312361152,1705830639202,-524.23336477,0.00030136,2]
[312361153,1705830639211,-500.0,0.00030136,2]
[312361154,1705830639220,-500.0,0.00030136,2]
[312361156,1705830639230,-500.0,0.00030136,2]
[312361158,1705830639239,-500.0,0.00030136,2]
[312361160,1705830639248,-724.54,0.00030136,2]
[312361161,1705830639257,-500.0,0.00030136,2]
[312361162,1705830639266,-533.55959299,0.00030136,2]
[312361163,1705830639276,-500.0,0.00030136,2]
[312361164,1705830639285,-500.0,0.00030136,2]
[312361165,1705830639294,-500.0,0.00030136,2]
[312361166,1705830639304,-500.0,0.00030136,2]
[312361167,1705830639313,-300.67494007,0.00030136,2]
[312361168,1705830639322,-500.0,0.00030136,2]
[312361169,1705830639331,-500.0,0.00030136,2]
[312361170,1705830639340,-500.0,0.00030136,2]
[312361171,1705830639349,-500.0,0.00030136,2]
[312361172,1705830639358,-500.0,0.00030136,2]
[312361173,1705830639367,-500.67327794,0.00030136,2]
[312361174,1705830639376,-473.69115438,0.00030136,2]
[312361175,1705830639385,-307.26826808,0.00030136,2]
[312361176,1705830639394,-500.0,0.00030136,2]
[312361177,1705830639403,-500.0,0.00030136,2]
[312361178,1705830639412,-500.0,0.00030136,2]
[312361179,1705830639421,-356.08272014,0.00030136,2]
[312361180,1705830639431,-1024.7,0.00030136,2]
[312361181,1705830639440,-500.0,0.00030136,2]
[312361182,1705830639449,-500.59354776,0.00030136,2]
[312361183,1705830639458,-220.0,0.00030136,2]
[312361184,1705830639467,-667.93,0.00030136,2]
[312361185,1705830639476,-500.0,0.00030136,2]
[312361186,1705830639485,-500.0,0.00030136,2]
[312361187,1705830639494,-503.03597307,0.00030136,2]
[312361188,1705830639503,-505.49870955,0.00030136,2]
[312361189,1705830639513,-197.51931801,0.00030136,2]
[312361190,1705830639522,-511.20407066,0.00030136,2]
[312361191,1705830639532,-1178.69,0.00030136,2]
[312361192,1705830639541,-504.58949916,0.00030136,2]
[312361193,1705830639550,-500.0,0.00030136,2]
[312361194,1705830639560,-500.0,0.00030136,2]
[312361195,1705830639568,-500.0,0.00030136,2]
[312361196,1705830639578,-500.0,0.00030136,2]
[312361197,1705830639587,-500.0,0.00030136,2]
[312361198,1705830639596,-500.0,0.00030136,2]
[312361199,1705830639605,-163.9763583,0.00030136,2]
[312361200,1705830639614,-500.0,0.00030136,2]
[312361201,1705830639623,-500.0,0.00030136,2]
[312361202,1705830639633,-500.0,0.00030136,2]
[312361203,1705830639642,-500.0,0.00030136,2]
[312361204,1705830639652,-500.0,0.00030136,2]
[312361205,1705830639662,-500.0,0.00030136,2]
[312361206,1705830639671,-500.0,0.00030136,2]
[312361207,1705830639680,-500.0,0.00030136,2]
[312361208,1705830639690,-500.0,0.00030136,2]
[312361209,1705830639699,-500.0,0.00030136,2]
[312361210,1705830639709,-1010.84,0.00030136,2]
[312361211,1705830639718,-500.0,0.00030136,2]
[312361212,1705830639727,-500.0,0.00030136,2]
[312361213,1705830639736,-500.0,0.00030136,2]
[312361214,1705830639746,-500.0,0.00030136,2]
[312361215,1705830639755,-500.19381526,0.00030136,2]
[312361216,1705830639764,-500.0,0.00030136,2]
[312361217,1705830639774,-500.0,0.00030136,2]
[312361218,1705830639783,-624.78198421,0.00030136,2]
[312361219,1705830639792,-500.0,0.00030136,2]
[312361220,1705830639801,-500.0,0.00030136,2]
[312361221,1705830639810,-500.0,0.00030136,2]
[312361222,1705830639819,-500.0,0.00030136,2]
[312361223,1705830639828,-500.0,0.00030136,2]
[312361224,1705830639838,-500.0,0.00030136,2]
[312361225,1705830639847,-1075.83,0.00030136,2]
[312361226,1705830639856,-500.0,0.00030136,2]
[312361227,1705830639866,-500.0,0.00030136,2]
[312361228,1705830639875,-500.0,0.00030136,2]
[312361229,1705830639884,-500.0,0.00030136,2]
[312361230,1705830639893,-500.0,0.00030136,2]
[312361231,1705830639902,-500.0,0.00030136,2]
[312361232,1705830639911,-500.0,0.00030136,2]
[312361233,1705830639920,-500.0,0.00030136,2]
[312361234,1705830639929,-500.0,0.00030136,2]
[312361235,1705830639938,-500.0,0.00030136,2]
[312361236,1705830639947,-500.0,0.00030136,2]
[312361237,1705830639956,-500.0,0.00030136,2]
[312361238,1705830639965,-500.0,0.00030136,2]
[312361239,1705830639975,-500.0,0.00030136,2]
[312361240,1705830639984,-638.59,0.00030136,2]
[312361241,1705830639993,-611.2104419,0.00030136,2]
[312361242,1705830640002,-500.0,0.00030136,2]
[312361243,1705830640012,-500.0,0.00030136,2]
[312361244,1705830640021,-502.08848688,0.00030136,2]
[312361245,1705830640030,-204.32141091,0.00030136,2]
[312361246,1705830640039,-500.0,0.00030136,2]
[312361247,1705830640049,-390.67432736,0.00030136,2]
[312361248,1705830640058,-500.0,0.00030136,2]
[312361249,1705830640067,-500.0,0.00030136,2]
[312361250,1705830640076,-500.0,0.00030136,2]
[312361251,1705830640085,-2181.24,0.00030136,2]
[312361252,1705830640095,-500.0,0.00030136,2]
[312361253,1705830640104,-1099.43,0.00030136,2]
[312361254,1705830640113,-500.0,0.00030136,2]
[312361255,1705830640122,-1000.0,0.00030136,2]
[312361256,1705830640131,-500.0,0.00030136,2]
[312361257,1705830640140,-500.0,0.00030136,2]
[312361258,1705830640149,-500.0,0.00030136,2]
[312361259,1705830640158,-554.88569224,0.00030136,2]
[312361260,1705830640168,-464.02860065,0.00030136,2]
[312361261,1705830640177,-500.0,0.00030136,2]
[312361262,1705830640186,-409.5588968,0.00030136,2]
[312361263,1705830640195,-500.0,0.00030136,2]
[312361264,1705830640204,-500.0,0.00030136,2]
[312361265,1705830640213,-2232.21812993,0.00030136,2]
[312361342,1705830772371,500.0,0.00030136,7]
[312361343,1705830772656,500.0,0.0003041,7]
[312361358,1705830931701,465.77334295,0.00030957,7]
[312361362,1705830986671,200.0,0.00030714,15]
[312361392,1705831227161,500.0,0.00030136,14]
[312361393,1705831227540,500.0,0.0003041,14]
[312361394,1705831227806,500.0,0.00030684,14]
[312361395,1705831228054,441.91721977,0.00030958,14]
[312361396,1705831236220,326.04134007,0.00030683,7]
[312361397,1705831286388,200.0,0.00030714,15]
[312361399,1705831586620,200.0,0.00030714,15]
[312361400,1705831625113,-154.70605849,0.00027031,4]
[312361401,1705831625134,-7815.92505799,0.00027923,2]
[312361497,1705831832050,-154.7215013,0.00027031,4]
[312361498,1705831832062,-1789.63924144,0.00027923,2]
[312361549,1705831838173,-432.02763024,0.00027923,2]
[312361550,1705831838183,-1845.3329235,0.00027924,3]
[312361551,1705831838192,-1871.09906773,0.00027924,3]
[312361552,1705831838202,-2221.16049163,0.00027924,4]
[312361553,1705831838211,-695.39284558,0.00027924,4]
[312361554,1705831838220,-5000.0,0.00027924,5]
[312361555,1705831838229,-162.812824,0.00028767,2]
[312361556,1705831838238,-2000.0,0.0003,2]
[312361557,1705831838247,-2000.0,0.0003,2]
[312361558,1705831838256,-2000.0,0.0003,2]
[312361559,1705831838267,-2000.0,0.0003,2]
[312361560,1705831838277,-2000.0,0.0003,2]
[312361561,1705831838286,-2000.0,0.0003,2]
[312361562,1705831838295,-657.24587196,0.0003,3]
[312361563,1705831838304,-199.0,0.0003,2]
[312361564,1705831838313,-2370.80719439,0.0003,2]
[312361565,1705831838322,-9915.36380901,0.0003,4]
[312361566,1705831838332,-688.33469937,0.0003,4]
[312361567,1705831838341,-244.10022188,0.0003,4]
[312361568,1705831838350,-464.55162265,0.0003002,2]
[312361569,1705831838361,-154.7215013,0.0003002,4]
[312361570,1705831838370,-4444.7,0.00030024,3]
[312361571,1705831838379,-3703.92,0.00030024,3]
[312361572,1705831838388,-199.62558619,0.00030034,4]
[312361573,1705831838397,-155.67200944,0.00030034,4]
[312361574,1705831838406,-154.70605849,0.00030034,4]
[312361575,1705831838415,-528.33981378,0.00030034,4]
[312361576,1705831838424,-313.23857364,0.00030034,4]
[312361577,1705831838433,-4808.87497693,0.00030034,4]
[312361578,1705831838442,-404.7830707,0.00030034,4]
[312361579,1705831838451,-156.440844,0.00030034,4]
[312361580,1705831838464,-155.39815533,0.00030034,4]
[312361581,1705831838506,-578.16940661,0.00030034,4]
[312361582,1705831838514,-1245.25042531,0.00030034,4]
[312361583,1705831838524,-1696.365997,0.00030034,4]
[312361584,1705831838533,-1258.28045263,0.00030034,4]
[312361585,1705831838542,-329.46843563,0.00030034,4]
[312361586,1705831838551,-406.98672392,0.00030034,4]
[312361587,1705831838560,-247.17282345,0.00030034,4]
[312361588,1705831838570,-2025.31377809,0.00030034,4]
[312361589,1705831838579,-653.61556835,0.00030034,4]
[312361590,1705831838587,-667.19586272,0.00030034,4]
[312361591,1705831838596,-663.80781284,0.00030034,4]
[312361592,1705831838605,-19697.53585665,0.00030034,4]
[312361593,1705831838614,-171.21200823,0.00030034,4]
[312361594,1705831838623,-196.339527,0.00030034,4]
[312361595,1705831838632,-644.2750614,0.00030035,4]
[312361596,1705831838641,-3709.50558406,0.00030035,3]
[312361597,1705831838650,-422.49965695,0.00030035,4]
[312361598,1705831838659,-1540.60605234,0.00030035,4]
[312361599,1705831838668,-163.63328853,0.00030035,4]
[312361600,1705831838677,-3017.54053882,0.00030035,4]
[312361601,1705831838687,-189.43956832,0.00030036,3]
[312361602,1705831838696,-276000.0,0.00030036,2]
[312361603,1705831838705,-18066.70186855,0.00030133,4]
[312361604,1705831838713,-823.86653966,0.00030134,4]
[312361605,1705831838723,-2705.10797595,0.00030134,5]
[312361606,1705831838733,-2928.89496517,0.00030134,4]
[312361607,1705831838742,-2523.43765642,0.00030134,4]
[312361608,1705831838751,-347.2235622,0.00030134,4]
[312361609,1705831838760,-294.70821043,0.00030134,4]
[312361610,1705831838769,-2552.90444044,0.00030134,4]
[312361611,1705831838778,-10739.18533603,0.00030134,4]
[312361612,1705831838789,-157.13400969,0.00030135,4]
[312361613,1705831838798,-400.09497465,0.00030135,2]
[312361614,1705831838807,-500.0,0.00030135,2]
[312361615,1705831838816,-372.82123039,0.00030135,2]
[312361616,1705831838826,-500.0,0.00030135,2]
[312361617,1705831838835,-500.0,0.00030135,2]
[312361618,1705831838844,-500.0,0.00030135,2]
[312361619,1705831838853,-500.0,0.00030135,2]
[312361620,1705831838863,-271.11134326,0.00030135,2]
[312361621,1705831838872,-442.11644239,0.00030135,2]
[312361622,1705831838882,-494.07848065,0.00030135,2]
[312361623,1705831838891,-496.4743012,0.00030135,2]
[312361624,1705831838900,-447.38208515,0.00030135,2]
[312361625,1705831838910,-500.0,0.00030135,2]
[312361626,1705831838919,-500.0,0.00030135,2]
[312361627,1705831838928,-500.0,0.00030135,2]
[312361628,1705831838937,-250.0,0.00030135,2]
[312361629,1705831838947,-500.0,0.00030136,2]
[312361630,1705831838956,-500.0,0.00030136,2]
[312361631,1705831838965,-500.0,0.00030136,2]
[312361632,1705831838975,-500.0,0.00030136,2]
[312361633,1705831838984,-500.0,0.00030136,2]
[312361634,1705831838993,-1824.95710943,0.00030136,2]
[312361635,1705831839002,-351.38011252,0.00030136,2]
[312361636,1705831839012,-813.13246525,0.00030136,4]
[312361637,1705831839022,-500.0,0.00030136,2]
[312361638,1705831839032,-500.0,0.00030136,2]
[312361639,1705831839041,-500.0,0.00030136,2]
[312361640,1705831839050,-505.49870955,0.00030136,2]
[312361641,1705831839062,-1000.0,0.00030136,2]
[312361642,1705831839070,-500.0,0.00030136,2]
[312361643,1705831839080,-500.0,0.00030136,2]
[312361644,1705831839089,-1178.69,0.00030136,2]
[312361645,1705831839099,-163.9763583,0.00030136,2]
[312361646,1705831839109,-500.0,0.00030136,2]
[312361647,1705831839118,-500.0,0.00030136,2]
[312361648,1705831839127,-500.0,0.00030136,2]
[312361649,1705831839136,-500.0,0.00030136,2]
[312361650,1705831839147,-500.0,0.00030136,2]
[312361651,1705831839157,-611.2104419,0.00030136,2]
[312361652,1705831839166,-500.0,0.00030136,2]
[312361653,1705831839175,-500.0,0.00030136,2]
[312361654,1705831839184,-500.0,0.00030136,2]
[312361655,1705831839194,-204.32141091,0.00030136,2]
[312361656,1705831839203,-500.0,0.00030136,2]
[312361657,1705831839212,-500.0,0.00030136,2]
[312361658,1705831839222,-624.78198421,0.00030136,2]
[312361659,1705831839232,-500.0,0.00030136,2]
[312361660,1705831839241,-500.0,0.00030136,2]
[312361661,1705831839250,-500.0,0.00030136,2]
[312361662,1705831839260,-500.0,0.00030136,2]
[312361663,1705831839269,-500.19381526,0.00030136,2]
[312361664,1705831839278,-500.0,0.00030136,2]
[312361665,1705831839287,-500.0,0.00030136,2]
[312361666,1705831839296,-1075.83,0.00030136,2]
[312361667,1705831839306,-500.0,0.00030136,2]
[312361668,1705831839315,-1099.43,0.00030136,2]
[312361669,1705831839324,-500.0,0.00030136,2]
[312361670,1705831839333,-500.0,0.00030136,2]
[312361671,1705831839343,-500.0,0.00030136,2]
[312361672,1705831839352,-464.02860065,0.00030136,2]
[312361673,1705831839361,-500.0,0.00030136,2]
[312361674,1705831839370,-500.0,0.00030136,2]
[312361675,1705831839380,-500.0,0.00030136,2]
[312361676,1705831839389,-409.5588968,0.00030136,2]
[312361677,1705831839397,-562.18289827,0.00030136,2]
[312361678,1705831839406,-500.0,0.00030136,2]
[312361679,1705831839415,-500.0,0.00030136,2]
[312361680,1705831839424,-387.91365375,0.00030136,2]
[312361681,1705831839433,-500.0,0.00030136,2]
[312361682,1705831839442,-500.0,0.00030136,2]
[312361683,1705831839451,-500.0,0.00030136,2]
[312361684,1705831839460,-500.0,0.00030136,2]
[312361685,1705831839469,-500.0,0.00030136,2]
[312361686,1705831839478,-500.0,0.00030136,2]
[312361687,1705831839487,-500.0,0.00030136,2]
[312361688,1705831839495,-637.23312708,0.00030136,2]
[312361689,1705831839504,-1166.53,0.00030136,2]
[312361690,1705831839513,-768.2,0.00030136,2]
[312361691,1705831839523,-602.55421937,0.00030136,2]
[312361692,1705831839532,-500.0,0.00030136,2]
[312361693,1705831839541,-500.0,0.00030136,2]
[312361694,1705831839550,-500.0,0.00030136,2]
[312361695,1705831839558,-598.57591787,0.00030136,2]
[312361696,1705831839567,-500.0,0.00030136,2]
[312361697,1705831839576,-500.0,0.00030136,2]
[312361698,1705831839585,-581.49926245,0.00030136,2]
[312361699,1705831839594,-500.0,0.00030136,2]
[312361700,1705831839603,-500.0,0.00030136,2]
[312361701,1705831839612,-500.0,0.00030136,2]
[312361702,1705831839621,-500.0,0.00030136,2]
[312361703,1705831839630,-500.0,0.00030136,2]
[312361704,1705831839639,-500.0,0.00030136,2]
[312361705,1705831839648,-115.99949336,0.00030136,2]
[312361726,1705831841169,-292.10906799,0.00030036,3]
[312361728,1705831841179,-384.00050664,0.00030136,2]
[312361730,1705831841188,-500.0,0.00030136,2]
[312361732,1705831841197,-500.0,0.00030136,2]
[312361734,1705831841206,-500.0,0.00030136,2]
[312361736,1705831841215,-124.67631658,0.00030136,2]
[312361738,1705831841228,-375.32368342,0.00030136,2]
[312361739,1705831841237,-230.26419049,0.00030136,2]
[312361829,1705831847264,-269.73580951,0.00030136,2]
[312361830,1705831847273,-500.0,0.00030136,2]
[312361831,1705831847282,-500.0,0.00030136,2]
[312361832,1705831847291,-500.0,0.00030136,2]
[312361833,1705831847300,-500.0,0.00030136,2]
[312361834,1705831847309,-506.66714985,0.00030136,2]
[312361835,1705831847319,-500.0,0.00030136,2]
[312361836,1705831847328,-500.40738699,0.00030136,2]
[312361837,1705831847337,-500.0,0.00030136,2]
[312361838,1705831847347,-500.0,0.00030136,2]
[312361839,1705831847355,-500.0,0.00030136,2]
[312361840,1705831847364,-590.12,0.00030136,2]
[312361841,1705831847373,-500.0,0.00030136,2]
[312361842,1705831847381,-222.05922912,0.00030136,2]
[312361843,1705831847390,-500.0,0.00030136,2]
[312361844,1705831847399,-1000.0,0.00030136,2]
[312361845,1705831847408,-500.0,0.00030136,2]
[312361846,1705831847417,-630.44,0.00030136,2]
[312361847,1705831847427,-500.0,0.00030136,2]
[312361848,1705831847438,-500.0,0.00030136,2]
[312361849,1705831847447,-541.10630553,0.00030136,2]
[312361850,1705831847457,-200.0,0.00030136,2]
[312361851,1705831847468,-500.0,0.00030136,2]
[312361852,1705831847479,-527.82,0.00030136,2]
[312361853,1705831847488,-623.93,0.00030136,2]
[312361854,1705831847497,-500.0,0.00030136,2]
[312361855,1705831847508,-300.0,0.00030136,2]
[312361856,1705831847519,-500.0,0.00030136,2]
[312361857,1705831847529,-656.62,0.00030136,2]
[312361858,1705831847540,-500.0,0.00030136,2]
[312361859,1705831847549,-500.0,0.00030136,2]
[312361860,1705831847558,-500.0,0.00030136,2]
[312361861,1705831847567,-500.0,0.00030136,2]
[312361862,1705831847577,-500.0,0.00030136,2]
[312361863,1705831847586,-500.0,0.00030136,2]
[312361864,1705831847595,-614.55,0.00030136,2]
[312361865,1705831847603,-500.0,0.00030136,2]
[312361866,1705831847612,-500.0,0.00030136,2]
[312361867,1705831847622,-500.0,0.00030136,2]
[312361868,1705831847631,-500.0,0.00030136,2]
[312361869,1705831847640,-500.0,0.00030136,2]
[312361870,1705831847649,-500.0,0.00030136,2]
[312361871,1705831847659,-500.0,0.00030136,2]
[312361872,1705831847669,-500.0,0.00030136,2]
[312361873,1705831847680,-500.0,0.00030136,2]
[312361874,1705831847690,-500.0,0.00030136,2]
[312361875,1705831847700,-500.0,0.00030136,2]
[312361876,1705831847710,-500.0,0.00030136,2]
[312361877,1705831847719,-500.0,0.00030136,2]
[312361878,1705831847728,-500.0,0.00030136,2]
[312361879,1705831847737,-500.0,0.00030136,2]
[312361880,1705831847746,-500.0,0.00030136,2]
[312361881,1705831847756,-500.0,0.00030136,2]
[312361882,1705831847767,-638.59,0.00030136,2]
[312361883,1705831847777,-501.21615261,0.00030136,2]
[312361884,1705831847786,-1050.99,0.00030136,2]
[312361885,1705831847795,-500.0,0.00030136,2]
[312361886,1705831847805,-500.0,0.00030136,2]
[312361887,1705831847814,-500.0,0.00030136,2]
[312361888,1705831847823,-500.0,0.00030136,2]
[312361889,1705831847831,-500.0,0.00030136,2]
[312361890,1705831847840,-500.0,0.00030136,2]
[312361891,1705831847849,-500.0,0.00030136,2]
[312361892,1705831847858,-500.0,0.00030136,2]
[312361893,1705831847867,-500.0,0.00030136,2]
[312361894,1705831847877,-500.0,0.00030136,2]
[312361895,1705831847887,-500.0,0.00030136,2]
[312361896,1705831847896,-500.0,0.00030136,2]
[312361897,1705831847905,-500.0,0.00030136,2]
[312361898,1705831847914,-500.0,0.00030136,2]
[312361899,1705831847923,-500.0,0.00030136,2]
[312361900,1705831847933,-500.0,0.00030136,2]
[312361901,1705831847942,-500.0,0.00030136,2]
[312361902,1705831847952,-500.0,0.00030136,2]
[312361903,1705831847962,-500.0,0.00030136,2]
[312361904,1705831847971,-500.0,0.00030136,2]
[312361905,1705831847980,-500.0,0.00030136,2]
[312361906,1705831847990,-500.0,0.00030136,2]
[312361907,1705831847999,-500.0,0.00030136,2]
[312361908,1705831848008,-554.88569224,0.00030136,2]
[312361909,1705831848018,-502.08848688,0.00030136,2]
[312361910,1705831848027,-2181.24,0.00030136,2]
[312361911,1705831848036,-661.72,0.00030136,2]
[312361912,1705831848046,-500.0,0.00030136,2]